bitfinex/quotes_SOLUSD_20241009
["timestamp","ask_amount","ask_price","bid_price","bid_amount"]
[1728484959824,7.0725,141.4,141.36,17.685]
[1728484960409,7.0725,141.4,141.36,19.09959922]
[1728484960718,7.0725,141.4,141.36,24.759]
[1728484962405,7.0731,141.38,141.34,7.075]
[1728484962635,7.0726,141.39,141.35,8.48913171]
[1728484963132,7.0726,141.39,141.35,7.0745]
[1728484963709,7.0726,141.39,141.33,17.6883]
[1728484963710,41.455084,141.42,141.33,17.6883]
[1728484964010,7.0732,141.38,141.34,7.075]
[1728484964739,7.0732,141.38,141.34,8.48975911]
[1728484965034,7.0727,141.39,141.35,7.0745]
[1728484965839,7.0726,141.39,141.35,24.7607]
[1728484966133,7.076,141.33,141.29,24.7704]
[1728484966335,7.0764,141.32,141.28,7.0778]
[1728484966542,7.0772,141.3,141.25,22.885]
[1728484966842,7.0762,141.32,141.27,7.0786]
[1728484967533,7.0762,141.32,141.28,1.41531218]
[1728484967728,7.0762,141.32,141.28,7.0779]
[1728484968320,7.077,141.31,141.27,24.7744]
[1728484968720,17.6876,141.35,141.27,24.7744]
[1728484968721,7.0757,141.33,141.29,7.0776]
[1728484968927,17.6876,141.35,141.27,87.696]
[1728484968928,17.6876,141.35,141.27,17.696]
[1728484969124,7.0762,141.32,141.28,7.0779]
[1728484969527,7.0762,141.32,141.29,1.4153089]
[1728484970028,7.0762,141.32,141.28,7.0779]
[1728484970649,23.776884,141.34,141.27,17.696]
[1728484970830,7.0767,141.31,141.27,24.7745]
[1728484973659,7.0806,141.23,141.18,7.9143094]
[1728484973819,44.027864,141.32,141.18,18.5383094]
[1728484973820,23.776884,141.26,141.18,18.5383094]
[1728484974026,7.0811,141.22,141.18,0.8313094]
[1728484974351,41.475084,141.26,141.19,1.41630335]
[1728484974352,7.0807,141.23,141.19,1.41630335]
[1728484974545,7.0813,141.22,141.18,0.8313094]
[1728484974721,7.0813,141.22,141.18,20.8313094]
[1728484975624,7.0813,141.22,141.18,0.8313094]
[1728484975828,7.0813,141.22,141.18,7.9144094]
[1728484976840,41.475084,141.26,141.19,8.4983646]
[1728484976841,7.0802,141.24,141.19,8.4983646]
[1728484978232,7.0802,141.24,141.19,7.0822]
[1728484978535,7.0807,141.23,141.19,7.0822]
[1728484980647,43.776884,141.25,141.18,0.8313094]
[1728484980831,7.0822,141.2,141.18,0.8313094]
[1728484981037,7.0826,141.19,141.18,0.8313094]
[1728484981844,7.0817,141.21,141.18,0.8313094]
[1728484982029,7.0812,141.22,141.19,1.41633278]
[1728484982235,7.0808,141.23,141.18,7.9144094]
[1728484982448,7.0808,141.23,141.19,8.49862666]
[1728484982830,7.0808,141.23,141.19,1.41612666]
[1728484983237,7.0808,141.23,141.18,25.6213094]
[1728484983756,20.0,141.25,141.18,25.6213094]
[1728484983757,7.0811,141.22,141.18,25.6213094]
[1728484985348,7.0826,141.19,141.18,0.8313094]
[1728484985546,17.7019,141.23,141.18,0.8313094]
[1728484985739,7.0822,141.2,141.18,0.8313094]
[1728484986628,7.0826,141.19,141.18,0.8313094]
[1728484987560,30.859484,141.19,141.18,0.8313094]
[1728484988352,50.859484,141.19,141.18,0.8313094]
[1728484989455,58.22367118,141.19,141.18,0.8313094]
[1728484990140,58.34916118,141.19,141.18,0.8313094]
[1728484990453,58.22367118,141.19,141.18,0.8313094]
[1728484992641,34.44678718,141.19,141.18,0.8313094]
[1728484992834,27.0826,141.19,141.18,0.8313094]
[1728484994560,50.859484,141.19,141.18,0.8313094]
[1728484994770,51.110464,141.19,141.18,9.4e-06]
[1728484996437,51.110464,141.19,141.05,91.0445422]
[1728484996438,7.0896,141.05,141.0,7.0918]
[1728484996635,7.0896,141.05,140.99,24.8236]
[1728484996859,7.0896,141.05,140.97,91.0445422]
[1728484997082,27.0896,141.05,140.97,70.0]
[1728484997243,50.866484,141.05,140.98,1.41813151]
[1728484997559,50.866484,141.05,140.96,17.7353]
[1728484997749,50.866484,141.05,140.97,7.0932]
[1728484997950,27.0896,141.05,140.97,77.0932]
[1728484998348,50.866484,141.05,140.96,24.8294]
[1728484998658,50.866484,141.05,140.97,7.0936]
[1728484999861,50.866484,141.05,140.99,7.0922]
[1728485000039,27.0896,141.05,141.0,7.0921]
[1728485000239,27.0896,141.05,140.98,17.7319]
[1728485000240,27.0896,141.05,140.99,7.0926]
[1728485000654,50.866484,141.05,140.98,17.7319]
[1728485000860,27.0896,141.05,140.98,17.7319]
[1728485001039,50.866484,141.05,140.98,24.8247]
[1728485001241,27.0896,141.05,140.98,17.7319]
[1728485002244,50.866484,141.05,140.99,1.41808319]
[1728485002553,50.866484,141.05,140.98,17.7319]
[1728485002554,27.0896,141.05,140.98,24.8246]
[1728485002742,27.0896,141.05,140.99,7.0925]
[1728485002949,27.0896,141.05,140.98,17.7319]
[1728485004470,27.0896,141.05,140.99,7.0925]
[1728485004965,50.866484,141.05,140.98,24.825]
[1728485005342,27.0896,141.05,140.99,7.0925]
[1728485005558,50.866484,141.05,140.98,24.8246]
[1728485006952,50.866484,141.05,141.0,7.0917]
[1728485007161,50.866484,141.05,141.0,1.41817561]
[1728485007468,50.866484,141.05,140.99,7.0923]
[1728485007672,50.866484,141.05,140.98,7.0931]
[1728485008165,50.866484,141.05,140.97,17.7337]
[1728485008372,50.866484,141.05,140.99,7.0926]
[1728485008551,27.0896,141.05,141.0,7.0919]
[1728485010465,27.0896,141.05,140.99,24.8237]
[1728485010767,27.0896,141.05,140.99,24.8233]
[1728485011152,50.866484,141.05,141.0,1.41812382]
[1728485011472,50.866484,141.05,140.99,24.8234]
[1728485011865,27.0896,141.05,140.99,24.8234]
[1728485012447,27.0896,141.05,140.99,17.7311]
[1728485012659,50.866484,141.05,140.99,17.7311]
[1728485012952,27.0896,141.05,140.99,24.8237]
[1728485015269,51.117464,141.05,141.04,0.8313094]
[1728485015978,50.866484,141.05,141.04,0.8313094]
[1728485017363,27.0896,141.05,141.04,0.8313094]
[1728485020779,50.866484,141.05,141.04,0.8313094]
[1728485021361,7.36312178,141.08,141.04,0.8313094]
[1728485021565,7.36312178,141.08,141.06,17.7227]
[1728485021775,7.0868,141.11,141.06,24.8115]
[1728485022087,7.0867,141.11,141.07,7.0881]
[1728485022377,7.0874,141.1,141.06,17.7227]
[1728485023665,25.06759797,141.15,141.06,24.8117]
[1728485023871,7.0867,141.11,141.06,17.7227]
[1728485024063,7.0867,141.11,141.07,1.417589]
[1728485024379,7.0867,141.11,141.06,17.7227]
[1728485024761,17.7121,141.15,141.06,24.8117]
[1728485024967,7.0873,141.1,141.06,24.8117]
[1728485025362,7.0867,141.11,141.06,24.8117]
[1728485025563,43.902374,141.14,141.06,24.8117]
[1728485025766,7.0872,141.1,141.06,17.7227]
[1728485026367,7.0877,141.09,141.06,17.7227]
[1728485026771,17.7143,141.13,141.04,0.8313094]
[1728485026975,7.0885,141.08,141.04,0.8313094]
[1728485027879,17.717,141.11,141.04,0.8313094]
[1728485028084,7.0893,141.06,141.04,0.8313094]
[1728485028282,7.0888,141.07,141.04,0.8313094]
[1728485028582,7.0892,141.06,141.04,0.8313094]
[1728485028795,7.0896,141.05,141.04,0.8313094]
[1728485029769,7.0893,141.06,141.04,0.8313094]
[1728485030859,43.776884,141.08,141.04,0.8313094]
[1728485031083,27.0877,141.09,141.05,7.0896]
[1728485031591,20.0,141.09,141.04,18.5564094]
[1728485031891,7.0887,141.07,141.04,18.5564094]
[1728485035964,30.866484,141.05,141.04,0.8313094]
[1728485036887,7.0896,141.06,141.04,0.8313094]
[1728485038189,20.0,141.07,141.04,0.8313094]
[1728485038386,7.0887,141.07,141.04,0.8313094]
[1728485038692,7.0891,141.06,141.04,0.8313094]
[1728485039069,7.0888,141.07,141.04,0.8313094]
[1728485039869,60.18474489,141.15,141.04,18.5566094]
[1728485039870,7.0885,141.08,141.04,18.5566094]
[1728485040077,17.7169,141.11,141.04,25.6464094]
[1728485040270,35.4248,141.15,141.04,0.8313094]
[1728485040271,16.2374,141.1,141.04,0.8313094]
[1728485040470,7.0896,141.05,141.04,0.8313094]
[1728485041077,27.0896,141.05,141.04,0.8313094]
[1728485042499,50.866484,141.05,141.04,0.8313094]
[1728485046199,66.695764,141.05,141.04,0.8313094]
[1728485046408,66.695764,141.05,141.04,9.4e-06]
[1728485046578,7.0935,140.98,140.94,23.096]
[1728485046779,43.776884,141.01,140.94,16.001]
[1728485047088,7.0933,140.98,140.94,23.0959]
[1728485047292,43.776884,141.01,140.94,16.001]
[1728485047683,43.776884,141.01,140.94,17.41984935]
[1728485047881,43.776884,141.01,140.94,33.7386]
[1728485048100,7.0917,141.01,140.96,7.094]
[1728485048402,7.0922,141.0,140.96,17.735]
[1728485049109,20.0,141.03,140.96,24.829]
[1728485049399,7.0922,141.0,140.96,24.829]
[1728485049608,7.0933,140.98,140.94,23.0959]
[1728485049899,23.776884,141.02,140.96,7.0938]
[1728485050089,7.0918,141.01,140.97,8.51212569]
[1728485050789,23.776884,141.02,140.95,17.7358]
[1728485050790,7.0922,141.0,140.96,7.094]
[1728485051996,7.0918,141.01,140.97,7.0936]
[1728485052203,23.776884,141.02,140.95,17.7358]
[1728485052500,7.0925,141.0,140.96,7.094]
[1728485052699,7.0932,140.98,140.95,17.7358]
[1728485052900,41.505084,141.02,140.95,17.7358]
[1728485053209,7.0928,140.99,140.95,24.8304]
[1728485053505,41.505084,141.02,140.98,7.0931]
[1728485053506,7.0913,141.02,140.98,7.0931]
[1728485053675,7.0916,141.01,140.98,1.41844585]
[1728485053880,7.0916,141.01,140.98,1.4183847]
[1728485054076,20.0,141.03,140.98,1.4183847]
[1728485054294,7.0914,141.02,140.98,8.5113847]
[1728485055279,17.728,141.02,140.98,1.4183847]
[1728485055480,7.0943,140.96,140.91,7.0964]
[1728485055699,7.0943,140.96,140.92,1.41887228]
[1728485055904,7.0943,140.96,140.9,104.7773094]
[1728485055905,20.0,140.99,140.9,87.0346094]
[1728485056080,7.0937,140.97,140.93,7.0955]
[1728485056606,20.0,140.99,140.92,17.7396]
[1728485056607,7.0942,140.96,140.94,1.41878735]
[1728485057108,7.0938,140.97,140.93,7.22109]
[1728485057492,17.7294,141.01,140.94,19.15621297]
[1728485057799,7.0917,141.01,140.97,7.0936]
[1728485058001,7.35935899,141.03,140.93,70.12549]
[1728485058002,61.505184,141.02,140.93,17.86389]
[1728485058196,7.094,140.97,140.93,24.95939]
[1728485058377,7.094,140.97,140.93,24.8339]
[1728485058582,7.094,140.97,140.94,1.41872751]
[1728485058781,7.094,140.97,140.93,24.8339]
[1728485059519,7.35935899,141.03,141.0,7.0917]
[1728485059729,7.35935899,141.03,141.01,1.41818178]
[1728485060005,7.0907,141.03,141.0,1.41809379]
[1728485060207,7.0907,141.03,140.98,24.8253]
[1728485060385,7.0907,141.03,140.99,8.51080526]
[1728485060586,13.60834563,141.08,140.98,17.7325]
[1728485060783,7.0925,141.0,140.95,24.8306]
[1728485061015,7.0918,141.01,140.95,87.7363]
[1728485061190,7.0915,141.02,140.97,7.0933]
[1728485061598,7.0917,141.01,140.97,7.0933]
[1728485061983,7.0917,141.01,140.95,17.7363]
[1728485062306,7.0917,141.01,140.96,7.094]
[1728485062683,17.726,141.04,140.96,7.094]
[1728485062890,7.0922,141.0,140.96,7.094]
[1728485063500,17.726,141.04,140.95,17.7363]
[1728485063501,17.726,141.04,140.95,24.8308]
[1728485063803,7.0927,140.99,140.95,17.7363]
[1728485064403,17.726,141.04,140.95,17.7363]
[1728485064703,7.0936,140.98,140.94,22.7681]
[1728485064887,17.7285,141.02,140.94,15.673]
[1728485064888,7.0937,140.97,140.94,15.673]
[1728485065086,7.0942,140.96,140.92,24.8354]
[1728485065583,7.0942,140.96,140.92,17.7396]
[1728485065783,7.0942,140.96,140.92,24.8358]
[1728485066290,7.0937,140.97,140.93,7.0956]
[1728485066600,7.0937,140.97,140.93,8.5143841]
[1728485066805,43.776884,141.01,140.94,17.7377]
[1728485067103,7.0936,140.98,140.94,17.7377]
[1728485067303,7.0936,140.98,140.95,1.4187697]
[1728485067609,7.0936,140.98,140.94,17.7377]
[1728485067783,43.776884,141.01,140.94,17.7377]
[1728485067984,7.0937,140.97,140.94,17.7377]
[1728485069216,7.0937,140.97,140.95,1.41876696]
[1728485069588,7.0937,140.97,140.94,17.7377]
[1728485070096,7.0923,141.0,140.95,8.51296737]
[1728485070419,7.0918,141.01,140.97,7.0932]
[1728485070715,7.0916,141.02,140.97,7.0932]
[1728485070888,7.0917,141.01,140.97,7.0932]
[1728485071497,7.0917,141.01,140.97,7.0934]
[1728485071698,7.0917,141.01,140.98,1.41839755]
[1728485072003,7.0912,141.02,140.98,8.51149755]
[1728485072204,7.35718243,141.03,140.98,19.15109755]
[1728485072521,7.35718243,141.03,141.0,7.0921]
[1728485072720,7.0907,141.03,140.99,7.0925]
[1728485072918,7.0912,141.02,140.98,24.8257]
[1728485073504,7.0908,141.03,140.99,8.51080615]
[1728485073817,7.0892,141.06,141.02,7.091]
[1728485073992,7.0903,141.04,141.0,24.8224]
[1728485074193,7.0898,141.05,141.01,8.50966432]
[1728485074797,7.35602214,141.07,141.02,7.0908]
[1728485074998,7.0888,141.07,141.03,8.50834928]
[1728485075294,22.97107099,141.11,141.03,1.41784928]
[1728485075496,7.0901,141.04,140.99,24.8235]
[1728485075897,7.0903,141.04,140.99,24.8235]
[1728485076202,7.0898,141.05,141.0,7.0918]
[1728485077121,7.0898,141.05,141.01,7.0916]
[1728485077495,7.0895,141.06,141.02,7.091]
[1728485077727,7.0895,141.06,141.03,1.41784869]
[1728485078420,7.0888,141.07,141.03,8.50844869]
[1728485078623,7.0892,141.06,141.04,1.4178406]
[1728485079024,7.0892,141.06,141.02,7.091]
[1728485079419,7.0892,141.06,141.03,1.41784102]
[1728485080005,7.0892,141.06,141.02,7.091]
[1728485080229,17.7195,141.09,141.01,17.7288]
[1728485080429,22.97107099,141.11,141.04,7.0901]
[1728485080430,7.0882,141.08,141.04,7.0901]
[1728485080725,7.0878,141.09,141.05,8.50718358]
[1728485080921,7.0874,141.1,141.06,7.0889]
[1728485081104,7.0874,141.1,141.07,1.41752665]
[1728485081304,15.6147,141.11,141.08,1.41752619]
[1728485081497,6.5806,141.12,141.08,7.0881]
[1728485081498,7.0863,141.12,141.08,7.0881]
[1728485081825,41.31528757,141.15,141.07,17.7214]
[1728485082029,7.0888,141.07,141.03,40.4691]
[1728485082199,7.0882,141.08,141.04,7.0897]
[1728485082523,7.0879,141.09,141.05,7.0896]
[1728485083243,20.43980157,141.27,141.14,12.5234]
[1728485083402,13.0845,141.27,141.14,12.5234]
[1728485083611,6.0015,141.27,141.16,17.7102]
[1728485083805,6.0015,141.27,141.17,1.41641182]
[1728485084219,6.0015,141.27,141.17,8.49961182]
[1728485084220,7.0811,141.23,141.17,8.49961182]
[1728485084412,7.0811,141.22,141.17,1.41647528]
[1728485085005,7.0811,141.22,141.17,8.50007528]
[1728485085526,24.027864,141.25,141.17,1.41647528]
[1728485085722,20.0,141.24,141.17,1.41647528]
[1728485085909,7.0807,141.23,141.18,7.0831]
[1728485088433,7.0807,141.23,141.16,24.7939]
[1728485088824,7.0812,141.22,141.16,24.7939]
[1728485089011,0.12549,141.25,141.16,17.7102]
[1728485089012,24.027864,141.25,141.16,17.7102]
[1728485089213,7.0817,141.21,141.16,24.7943]
[1728485089413,7.0817,141.21,141.17,1.4165376]
[1728485090318,7.0817,141.21,141.16,24.7943]
[1728485092728,7.0817,141.21,141.17,1.41653411]
[1728485094222,20.0,141.24,141.17,8.50003411]
[1728485094422,7.0812,141.22,141.17,8.50003411]
[1728485096227,7.0812,141.22,141.18,7.0831]
[1728485096527,7.0812,141.22,141.17,1.41653411]
[1728485096835,7.0812,141.22,141.17,7.0832]
[1728485097339,7.0812,141.22,141.18,1.41644157]
[1728485097535,7.0816,141.21,141.18,1.41644157]
[1728485097837,7.0816,141.21,141.17,7.0832]
[1728485098334,7.0816,141.21,141.18,1.41644305]
[1728485099236,7.0816,141.21,141.17,7.0832]
[1728485099737,7.0816,141.21,141.18,1.41644356]
[1728485100143,7.0816,141.21,141.17,7.0832]
[1728485100346,35.8459,141.24,141.18,1.41644523]
[1728485100643,7.0812,141.22,141.18,8.49954523]
[1728485101525,7.082,141.21,141.17,7.0834]
[1728485101847,7.0821,141.2,141.16,24.7942]
[1728485102029,7.0818,141.21,141.17,1.41650464]
[1728485102229,7.0818,141.21,141.17,8.50010464]
[1728485102824,7.0818,141.21,141.18,1.41650341]
[1728485104028,35.8459,141.24,141.18,1.41650341]
[1728485104232,20.0,141.22,141.19,8.49863739]
[1728485104828,7.0807,141.23,141.19,8.49863739]
[1728485105555,7.0811,141.22,141.18,24.7905]
[1728485105727,20.0,141.23,141.18,17.7076]
[1728485105928,7.0816,141.21,141.18,17.7076]
[1728485106426,7.0816,141.21,141.17,7.0833]
[1728485107141,29.80935789,141.27,141.2,21.0445422]
[1728485107448,23.5417,141.27,141.23,7.0804]
[1728485107644,23.5417,141.27,141.23,8.49638163]
[1728485108149,7.0791,141.26,141.23,1.41598163]
[1728485108328,7.0797,141.25,141.21,24.7851]
[1728485108742,7.0797,141.25,141.22,8.49712502]
[1728485110150,7.0797,141.25,141.22,1.41602502]
[1728485112464,7.0793,141.26,141.23,7.0806]
[1728485112945,7.0787,141.27,141.24,1.41589303]
[1728485113931,20.0,141.29,141.21,17.7039]
[1728485114258,7.0791,141.26,141.22,7.0809]
[1728485114432,20.0,141.29,141.2,0.12549]
[1728485114633,7.0804,141.24,141.2,7.0819]
[1728485115643,17.6954,141.28,141.21,1.41602755]
[1728485115954,7.0798,141.25,141.21,8.49752755]
[1728485116163,17.6954,141.28,141.21,1.41602755]
[1728485116346,20.0,141.23,141.11,76.4353]
[1728485116538,20.0,141.21,141.12,20.67867142]
[1728485116751,7.0842,141.16,141.13,5.22802747]
[1728485116952,7.0847,141.15,141.11,15.8207]
[1728485117138,7.0842,141.16,141.11,15.8207]
[1728485117555,7.0847,141.15,141.11,22.9073]
[1728485117859,7.0847,141.15,141.12,1.41685301]
[1728485118062,7.0847,141.15,141.11,22.9073]
[1728485118245,7.0847,141.15,141.12,1.41684442]
[1728485118639,7.0847,141.15,141.13,1.41685145]
[1728485118849,7.0847,141.15,141.14,1.41684707]
[1728485119158,7.0843,141.16,141.11,22.9073]
[1728485119335,7.0848,141.15,141.11,22.9073]
[1728485119661,7.0848,141.15,141.1,17.84259]
[1728485119662,7.0854,141.14,141.1,17.7171]
[1728485120180,17.7085,141.18,141.11,8.50356087]
[1728485120333,17.7085,141.18,141.11,7.0866]
[1728485120734,7.0851,141.14,141.1,24.8041]
[1728485120955,7.0853,141.14,141.09,98.1317422]
[1728485121164,17.7085,141.18,141.09,91.0445422]
[1728485121459,17.7085,141.18,141.09,70.0]
[1728485121637,7.0857,141.13,141.09,77.0876]
[1728485121834,20.0,141.17,141.09,77.0876]
[1728485122055,7.0853,141.14,141.1,8.50407278]
[1728485123053,7.0853,141.14,141.1,7.0871]
[1728485123243,20.0,141.17,141.11,8.62904724]
[1728485123244,7.0848,141.15,141.11,8.62904724]
[1728485124146,7.0848,141.15,141.11,26.34524724]
[1728485124147,7.0846,141.15,141.11,26.34524724]
[1728485124342,7.0846,141.15,141.11,17.84179]
[1728485125442,7.0846,141.15,141.1,7.087]
[1728485125443,7.0854,141.14,141.1,7.087]
[1728485125642,7.0842,141.16,141.12,7.0861]
[1728485125851,7.0842,141.16,141.11,0.25098]
[1728485126089,7.0842,141.16,141.12,7.0861]
[1728485126262,20.0,141.2,141.11,0.25098]
[1728485126562,20.0,141.2,141.11,70.12549]
[1728485126737,20.0,141.2,141.12,17.715]
[1728485126938,7.0846,141.15,141.11,7.21179]
[1728485127762,7.0846,141.15,141.11,0.12549]
[1728485127947,7.0851,141.14,141.11,0.12549]
[1728485128154,7.0843,141.16,141.12,7.0861]
[1728485128343,7.0837,141.17,141.13,7.0856]
[1728485128545,7.0841,141.16,141.12,7.0859]
[1728485129371,7.0837,141.17,141.13,7.0856]
[1728485129535,37.7056,141.2,141.13,7.0856]
[1728485129536,16.5226,141.22,141.14,23.902374]
[1728485129739,16.5226,141.22,141.16,0.12549]
[1728485129942,7.0819,141.21,141.17,8.49994185]
[1728485130137,7.0808,141.23,141.18,7.20819]
[1728485130360,7.0803,141.24,141.19,1.41612797]
[1728485130663,7.0803,141.24,141.2,7.20749]
[1728485131456,7.0797,141.25,141.21,7.0813]
[1728485131765,15.4393,141.26,141.2,0.12549]
[1728485131766,7.0807,141.23,141.2,0.12549]
[1728485132260,7.0807,141.23,141.19,17.7062]
[1728485133357,7.0816,141.22,141.18,0.12549]
[1728485133559,7.0817,141.21,141.18,0.12549]
[1728485135454,7.0817,141.21,141.17,28.1281422]
[1728485135868,7.0817,141.21,141.17,21.0445422]
[1728485136073,7.0817,141.21,141.17,25.26615136]
[1728485136379,7.0807,141.23,141.19,0.12549]
[1728485136549,7.0807,141.23,141.19,7.20799]
[1728485137150,7.0807,141.23,141.2,1.41608958]
[1728485138080,7.0843,141.16,141.13,15.597]
[1728485138247,17.7057,141.2,141.13,15.597]
[1728485138450,7.0842,141.16,141.13,15.597]
[1728485139446,7.0837,141.17,141.13,15.597]
[1728485139653,7.0832,141.18,141.14,102.52942915]
[1728485139955,7.0832,141.18,141.14,123.57397135]
[1728485140285,7.0818,141.21,141.17,31.111464]
[1728485140488,16.71956567,141.29,141.17,31.111464]
[1728485140489,7.0812,141.22,141.19,0.12549]
[1728485140777,7.0812,141.22,141.2,1.41606397]
[1728485141174,7.0812,141.22,141.19,0.25098]
[1728485141470,33.138,141.26,141.19,24.027864]
[1728485141775,7.0812,141.22,141.19,24.027864]
[1728485141973,7.0812,141.22,141.21,0.12549]
[1728485142145,7.0812,141.22,141.2,70.0]
[1728485142146,7.0812,141.22,141.2,0.12549]
[1728485142346,7.0812,141.22,141.19,24.027864]
[1728485144759,33.138,141.26,141.17,17.7087]
[1728485144760,15.4393,141.26,141.17,17.7087]
[1728485145071,7.0821,141.2,141.16,91.0445422]
[1728485145386,20.0,141.25,141.14,108.7566422]
[1728485145581,20.0,141.25,141.12,70.0]
[1728485145582,43.902374,141.23,141.12,70.0]
[1728485145756,20.0,141.21,141.12,70.0]
[1728485146160,7.0847,141.15,141.12,70.0]
[1728485146576,17.7058,141.2,141.13,1.41673461]
[1728485146762,17.7058,141.2,141.12,70.0]
[1728485146763,7.0843,141.16,141.14,1.41666795]
[1728485147765,7.0843,141.16,141.13,0.12549]
[1728485148383,7.0843,141.16,141.13,1.54219592]
[1728485148974,7.0843,141.16,141.13,0.12549]
[1728485149660,7.0847,141.15,141.13,0.12549]
[1728485151280,7.0847,141.15,141.12,70.0]
[1728485151581,7.0851,141.14,141.12,0.25098]
[1728485151752,7.0862,141.12,141.1,70.0]
[1728485151955,7.0857,141.13,141.1,70.0]
[1728485152979,15.4228,141.15,141.05,15.2126]
[1728485153182,15.4228,141.15,141.06,70.0]
[1728485153183,7.0883,141.08,141.06,70.0]
[1728485153358,17.7159,141.12,141.02,87.7275]
[1728485153683,17.7159,141.12,141.02,94.8186]
[1728485153684,7.0887,141.07,141.02,94.8186]
[1728485154178,17.7159,141.12,141.04,70.0]
[1728485154479,17.7159,141.12,141.02,87.7275]
[1728485154676,7.0893,141.06,141.03,1.41762083]
[1728485155787,7.0893,141.06,141.03,0.12549]
[1728485155969,6.2274,141.1,141.0,70.0]
[1728485155970,7.0907,141.03,141.0,70.0]
[1728485156154,7.0903,141.04,141.0,70.0]
[1728485157570,7.0903,141.04,141.01,0.12549]
[1728485157788,7.0895,141.06,141.01,8.63468055]
[1728485158081,7.0906,141.03,141.01,0.12549]
[1728485158277,20.0,141.07,141.01,0.12549]
[1728485158460,7.0897,141.05,141.01,0.12549]
[1728485160289,7.0896,141.06,141.02,0.12549]
[1728485160458,20.0,141.07,141.02,0.12549]
[1728485160661,7.0902,141.04,141.01,0.12549]
[1728485160965,7.0898,141.05,141.01,1.54338018]
[1728485161484,7.0892,141.06,141.02,23.902374]
[1728485161660,7.0897,141.05,141.01,23.902374]
[1728485162092,7.0892,141.06,141.01,7.21669]
[1728485162381,7.09,141.05,141.01,0.12549]
[1728485163397,20.0,141.07,140.97,73.0352422]
[1728485163398,20.0,141.07,140.98,70.0]
[1728485163617,7.0913,141.02,140.98,77.0931]
[1728485163894,7.0905,141.04,140.99,7.0924]
[1728485164872,7.0905,141.04,141.0,0.12549]
[1728485165078,7.0905,141.04,141.0,0.25098]
[1728485165564,7.0905,141.04,141.0,1.66892796]
[1728485165866,7.0905,141.04,141.0,8.76102796]
[1728485166067,7.0905,141.04,140.99,31.120464]
[1728485167663,37.7223,141.07,140.99,31.120464]
[1728485167974,7.0902,141.04,140.99,7.0925]
[1728485168175,7.0902,141.04,141.0,25.44582315]
[1728485168367,7.0902,141.04,141.0,24.027864]
[1728485168566,37.7223,141.07,141.0,0.12549]
[1728485169168,7.0912,141.02,141.0,0.12549]
[1728485169688,7.0908,141.03,141.0,0.12549]
[1728485170285,37.7223,141.07,141.0,0.12549]
[1728485170596,7.0903,141.04,141.0,7.21759]
[1728485170781,37.7223,141.07,141.0,0.12549]
[1728485171134,7.0906,141.03,141.0,0.12549]
[1728485173986,7.0915,141.02,140.98,77.093]
[1728485174577,7.0915,141.02,140.98,70.0]
[1728485174773,7.0917,141.01,140.98,70.0]
[1728485175373,20.0,141.04,140.97,0.12549]
[1728485175580,20.0,141.04,140.96,87.7346]
[1728485175581,7.0927,140.99,140.94,92.5929]
[1728485175774,7.0927,140.99,140.94,85.4981]
[1728485175979,15.5968,141.02,140.94,70.0]
[1728485176297,20.0,141.01,140.94,70.0]
[1728485176501,17.7295,141.01,140.93,17.7385]
[1728485176670,7.0945,140.96,140.94,1.41866465]
[1728485176875,17.7295,141.01,140.94,1.41866465]
[1728485176876,7.0938,140.97,140.94,1.41866465]
[1728485177203,7.0935,140.98,140.94,8.51366465]
[1728485177575,20.0,141.01,140.95,71.41854607]
[1728485177793,20.0,141.01,140.95,70.0]
[1728485178096,20.0,141.01,140.93,70.0]